[Event "Chinese Championship-B Men 2024"]
[Site "Liaocheng"]
[Date "2024.04.24"]
[Round "2.3"]
[White "Zhang, Ziji"]
[Black "Jin, Ruijun"]
[Result "1-0"]
[WhiteElo "2392"]
[BlackElo "1819"]
[PlyCount "65"]
[EventDate "2024.04.24"]
[EventType "swiss"]
[EventCountry "CHN"]
[TimeControl "5400+30"]

1. d4 {[%emt 0:00:03]} d5 {[%emt 0:00:17]} 2. Nf3 {[%emt 0:00:20]} Nf6 {[%emt 0:00:14]} 3. e3 {[%emt 0:00:36]} e6 {[%emt 0:06:18]} 4. Bd3 {[%emt 0:00:36]} c5 {[%emt 0:01:48]} 5. b3 {[%emt 0:00:28]} cxd4 {[%emt 0:02:07]} 6. exd4 {[%emt 0:00:06]} Bb4+ {[%emt 0:00:47]} 7. c3 {[%emt 0:03:12]} Ba5 {[%emt 0:00:35]} 8. Ba3 {[%emt 0:06:45]} Nc6 {[%emt 0:04:58]} 9. O-O {[%emt 0:00:51]} Ne7 {[%emt 0:03:40]} 10. c4 {[%emt 0:07:35]} dxc4 {[%emt 0:03:02]} 11. bxc4 {[%emt 0:00:05]} O-O {[%emt 0:00:18]} 12. Nbd2 {[%emt 0:02:20]} Re8 {[%emt 0:01:45]} 13. Ne4 {[%emt 0:02:45]} Nf5 {[%emt 0:06:12]} 14. Rb1 {[%emt 0:06:14]} Rb8 {[%emt 0:17:49]} 15. Qa4 {[%emt 0:22:39]} Nxe4 {[%emt 0:10:28]} 16. Bxe4 {[%emt 0:00:07]} Bd7 {[%emt 0:08:47]} 17. Qc2 {[%emt 0:01:06]} Qf6 {[%emt 0:09:45]} 18. Rxb7 {[%emt 0:11:47]} Rxb7 {[%emt 0:05:41]} 19. Bxb7 {[%emt 0:00:03]} Rb8 {[%emt 0:02:52]} 20. Be4 {[%emt 0:01:15]} g6 {[%emt 0:00:55]} 21. Rd1 {[%emt 0:02:08]} Bc7 {[%emt 0:02:57]} 22. Bc1 {[%emt 0:06:46]} Rb4 {[%emt 0:02:17]} 23. Bg5 {[%emt 0:03:52]} Qg7 {[%emt 0:00:14]} 24. Qc3 {[%emt 0:02:19]} Ba5 {[%emt 0:01:09]} 25. Bxf5 {[%emt 0:01:06]} gxf5 {[%emt 0:00:47]} 26. Qa3 {[%emt 0:02:01]} Ra4 {[%emt 0:00:24]} 27. Qd6 {[%emt 0:00:35]} f6 {[%emt 0:01:04]} 28. Bxf6 {[%emt 0:01:11]} Qxf6 {[%emt 0:00:04]} 29. Qxd7 {[%emt 0:00:03]} Rxa2 {[%emt 0:02:19]} 30. Qxa7 {[%emt 0:00:36]} f4 {[%emt 0:00:49]} 31. h4 {[%emt 0:00:34]} Qg6 {[%emt 0:00:57]} 32. Ne5 {[%emt 0:01:15]} Qe8 {[%emt 0:00:04]} 33. Rb1 {[%emt 0:00:23]} 1-0

[Event "Chinese Championship-B Men 2024"]
[Site "Liaocheng"]
[Date "2024.04.24"]
[Round "2.4"]
[White "Xia, Jinnan"]
[Black "Xie, Jianjun"]
[Result "1/2-1/2"]
[WhiteElo "1819"]
[BlackElo "2384"]
[PlyCount "62"]
[EventDate "2024.04.24"]
[EventType "swiss"]
[EventCountry "CHN"]
[TimeControl "5400+30"]

1. d4 {[%emt 0:00:02]} Nf6 {[%emt 0:01:18]} 2. c4 {[%emt 0:00:04]} g6 {[%emt 0:00:09]} 3. Nc3 {[%emt 0:00:06]} d5 {[%emt 0:00:51]} 4. Nf3 {[%emt 0:00:50]} Bg7 {[%emt 0:00:09]} 5. Bf4 {[%emt 0:02:54]} O-O {[%emt 0:09:14]} 6. e3 {[%emt 0:02:46]} c5 {[%emt 0:00:39]} 7. Be2 {[%emt 0:09:17]} cxd4 {[%emt 0:02:57]} 8. Nxd4 {[%emt 0:02:14]} Ne4 {[%emt 0:15:48]} 9. Nxe4 {[%emt 0:03:23]} dxe4 {[%emt 0:01:29]} 10. Bxb8 {[%emt 0:06:42]} Rxb8 {[%emt 0:03:00]} 11. O-O {[%emt 0:02:56]} Qb6 {[%emt 0:02:56]} 12. Nb3 {[%emt 0:09:21]} Bxb2 {[%emt 0:01:31]} 13. Rb1 {[%emt 0:00:04]} Bg7 {[%emt 0:00:49]} 14. Qc2 {[%emt 0:04:55]} Qc7 {[%emt 0:02:58]} 15. Rbc1 {[%emt 0:01:10]} f5 {[%emt 0:02:34]} 16. c5 {[%emt 0:00:23]} Kh8 {[%emt 0:12:52]} 17. Rfd1 {[%emt 0:02:02]} Bd7 {[%emt 0:02:47]} 18. Nd4 {[%emt 0:01:30]} Rbd8 {[%emt 0:06:10]} 19. g3 {[%emt 0:04:27]} Bc8 {[%emt 0:05:06]} 20. c6 {[%emt 0:07:57]} Bxd4 {[%emt 0:01:02]} 21. exd4 {[%emt 0:00:16]} Rf6 {[%emt 0:17:43]} 22. d5 {[%emt 0:04:53]} b6 {[%emt 0:02:54]} 23. Rd2 {[%emt 0:07:03]} Kg7 {[%emt 0:00:03]} 24. Rcd1 {[%emt 0:01:02]} Kf8 {[%emt 0:02:50]} 25. Qc3 {[%emt 0:01:51]} Rdd6 {[%emt 0:00:06]} 26. Qe3 {[%emt 0:01:23]} Kg7 {[%emt 0:00:19]} 27. Qf4 {[%emt 0:01:00]} Qd8 {[%emt 0:01:44]} 28. h4 {[%emt 0:03:04]} h6 {[%emt 0:00:50]} 29. a4 {[%emt 0:01:51]} Qc7 {[%emt 0:00:13]} 30. Bf1 {[%emt 0:01:23]} Qd8 {[%emt 0:00:47]} 31. Be2 {[%emt 0:00:05]} Qc7 {[%emt 0:00:18]} 1/2-1/2

[Event "Chinese Championship-B Men 2024"]
[Site "Liaocheng"]
[Date "2024.04.24"]
[Round "2.5"]
[White "Jiang, Haochen"]
[Black "Guo, Xinyu"]
[Result "1-0"]
[WhiteElo "2381"]
[BlackElo "1803"]
[PlyCount "65"]
[EventDate "2024.04.24"]
[EventType "swiss"]
[EventCountry "CHN"]
[TimeControl "5400+30"]

1. d4 {[%emt 0:00:25]} d5 {[%emt 0:00:12]} 2. c4 {[%emt 0:00:30]} e6 {[%emt 0:00:06]} 3. Nc3 {[%emt 0:00:09]} Nf6 {[%emt 0:00:24]} 4. Nf3 {[%emt 0:00:55]} Nbd7 {[%emt 0:02:49]} 5. e3 {[%emt 0:01:43]} Be7 {[%emt 0:01:16]} 6. b3 {[%emt 0:00:29]} O-O {[%emt 0:01:18]} 7. Bb2 {[%emt 0:00:52]} b6 {[%emt 0:00:46]} 8. Bd3 {[%emt 0:00:22]} Bb7 {[%emt 0:00:11]} 9. O-O {[%emt 0:00:08]} c5 {[%emt 0:07:43]} 10. Qe2 {[%emt 0:04:22]} Ne4 {[%emt 0:06:34]} 11. Rfd1 {[%emt 0:03:30]} Ndf6 {[%emt 0:04:41]} 12. Rac1 {[%emt 0:08:33]} Rc8 {[%emt 0:04:22]} 13. dxc5 {[%emt 0:05:39]} Nxc3 {[%emt 0:01:55]} 14. Bxc3 {[%emt 0:01:42]} bxc5 {[%emt 0:00:17]} 15. Qc2 {[%emt 0:17:18]} h6 {[%emt 0:06:04]} 16. cxd5 {[%emt 0:01:31]} Nxd5 {[%emt 0:04:49]} 17. Bh7+ {[%emt 0:13:45]} Kh8 {[%emt 0:00:06]} 18. e4 {[%emt 0:01:14]} Nxc3 {[%emt 0:03:20]} 19. Rxd8 {[%emt 0:00:54]} Rfxd8 {[%emt 0:00:06]} 20. Qxc3 {[%emt 0:01:47]} Kxh7 {[%emt 0:00:04]} 21. Qe3 {[%emt 0:01:17]} Kg8 {[%emt 0:07:48]} 22. h4 {[%emt 0:00:54]} Rd7 {[%emt 0:03:37]} 23. g4 {[%emt 0:04:40]} Rcd8 {[%emt 0:01:54]} 24. g5 {[%emt 0:00:30]} hxg5 {[%emt 0:08:20]} 25. hxg5 {[%emt 0:01:34]} g6 {[%emt 0:11:24]} 26. Qf4 {[%emt 0:01:26]} Bd6 {[%emt 0:04:28]} 27. Qh4 {[%emt 0:01:49]} Bf8 {[%emt 0:03:08]} 28. Kg2 {[%emt 0:00:42]} Rd1 {[%emt 0:01:46]} 29. Rxd1 {[%emt 0:01:53]} Rxd1 {[%emt 0:00:05]} 30. Qf4 {[%emt 0:00:15]} Rd7 {[%emt 0:02:34]} 31. Ne5 {[%emt 0:01:17]} Bd6 {[%emt 0:00:50]} 32. f3 {[%emt 0:00:37]} Ba6 {[%emt 0:02:57]} 33. Qd2 {[%emt 0:00:32]} 1-0

[Event "Chinese Championship-B Men 2024"]
[Site "Liaocheng"]
[Date "2024.04.24"]
[Round "2.6"]
[White "Jiang, Bryan Liu"]
[Black "Wu, Yixing"]
[Result "0-1"]
[WhiteElo "1800"]
[BlackElo "2348"]
[PlyCount "120"]
[EventDate "2024.04.24"]
[EventType "swiss"]
[EventCountry "CHN"]
[TimeControl "5400+30"]

1. d4 {[%emt 0:00:03]} Nf6 {[%emt 0:00:11]} 2. c4 {[%emt 0:00:05]} e6 {[%emt 0:00:06]} 3. Nf3 {[%emt 0:00:06]} d5 {[%emt 0:00:18]} 4. Nc3 {[%emt 0:00:40]} Nbd7 {[%emt 0:00:25]} 5. Bg5 {[%emt 0:00:53]} Bb4 {[%emt 0:00:25]} 6. Bxf6 {[%emt 0:04:34]} Bxc3+ {[%emt 0:01:03]} 7. bxc3 {[%emt 0:00:03]} Nxf6 {[%emt 0:00:08]} 8. cxd5 {[%emt 0:05:53]} exd5 {[%emt 0:04:26]} 9. e3 {[%emt 0:00:52]} O-O {[%emt 0:00:10]} 10. Bd3 {[%emt 0:00:39]} Bg4 {[%emt 0:00:19]} 11. h3 {[%emt 0:00:42]} Bh5 {[%emt 0:00:53]} 12. O-O {[%emt 0:12:00]} Ne4 {[%emt 0:01:14]} 13. Rc1 {[%emt 0:01:30]} Bxf3 {[%emt 0:01:22]} 14. gxf3 {[%emt 0:00:26]} Nd6 {[%emt 0:00:41]} 15. f4 {[%emt 0:05:06]} f5 {[%emt 0:01:55]} 16. Qh5 {[%emt 0:03:02]} Rf6 {[%emt 0:02:57]} 17. Kh2 {[%emt 0:00:59]} Ne4 {[%emt 0:09:01]} 18. Bxe4 {[%emt 0:04:49]} dxe4 {[%emt 0:00:08]} 19. Rg1 {[%emt 0:00:37]} Qd7 {[%emt 0:07:28]} 20. Rg2 {[%emt 0:06:32]} Raf8 {[%emt 0:01:52]} 21. Rcg1 {[%emt 0:00:44]} R8f7 {[%emt 0:00:42]} 22. Qd1 {[%emt 0:11:28]} Qb5 {[%emt 0:01:02]} 23. Qc2 {[%emt 0:04:36]} Qc4 {[%emt 0:06:34]} 24. Rb1 {[%emt 0:01:57]} Rb6 {[%emt 0:00:39]} 25. Rgg1 {[%emt 0:04:56]} Rff6 {[%emt 0:05:12]} 26. Rb3 {[%emt 0:02:01]} Rfc6 {[%emt 0:04:42]} 27. Rc1 {[%emt 0:05:33]} a5 {[%emt 0:11:07]} 28. Ra3 {[%emt 0:09:15]} Ra6 {[%emt 0:03:27]} 29. Ra4 {[%emt 0:02:24]} Qf7 {[%emt 0:00:45]} 30. Rb1 {[%emt 0:02:18]} Rh6 {[%emt 0:02:51]} 31. Qb3 {[%emt 0:02:41]} Rae6 {[%emt 0:02:41]} 32. Rg1 {[%emt 0:01:40]} b6 {[%emt 0:03:26]} 33. Rg3 {[%emt 0:00:27]} Rc6 {[%emt 0:04:05]} 34. Qxf7+ {[%emt 0:03:30]} Kxf7 {[%emt 0:00:04]} 35. c4 {[%emt 0:00:13]} Rhg6 {[%emt 0:00:08]} 36. Kg2 {[%emt 0:00:30]} Ke7 {[%emt 0:00:11]} 37. Kf1 {[%emt 0:00:15]} Kd7 {[%emt 0:00:13]} 38. Ke2 {[%emt 0:01:03]} Kc8 {[%emt 0:00:45]} 39. d5 {[%emt 0:01:28]} Rcd6 {[%emt 0:02:36]} 40. Ra3 {[%emt 0:01:22]} c6 {[%emt 0:00:32]} 41. dxc6 {[%emt 0:01:41]} Rxc6 {[%emt 0:00:07]} 42. Rxg6 {[%emt 0:00:25]} hxg6 {[%emt 0:00:05]} 43. Rc3 {[%emt 0:00:52]} Kc7 {[%emt 0:01:27]} 44. Kd2 {[%emt 0:00:37]} Rd6+ {[%emt 0:00:00]} 45. Ke2 {[%emt 0:00:36]} Kc6 {[%emt 0:00:04]} 46. a3 {[%emt 0:00:15]} Kc5 {[%emt 0:00:05]} 47. h4 {[%emt 0:00:26]} a4 {[%emt 0:00:15]} 48. f3 {[%emt 0:01:46]} exf3+ {[%emt 0:00:50]} 49. Kxf3 {[%emt 0:00:00]} Rd2 {[%emt 0:00:02]} 50. Rc1 {[%emt 0:00:13]} Rh2 {[%emt 0:01:59]} 51. Rb1 {[%emt 0:00:21]} Ra2 {[%emt 0:03:16]} 52. Rg1 {[%emt 0:00:11]} Rxa3 {[%emt 0:01:38]} 53. Rxg6 {[%emt 0:00:04]} Ra1 {[%emt 0:00:30]} 54. Rxg7 {[%emt 0:00:18]} Kxc4 {[%emt 0:02:32]} 55. Ra7 {[%emt 0:01:40]} b5 {[%emt 0:00:09]} 56. e4 {[%emt 0:00:33]} Rf1+ {[%emt 0:00:48]} 57. Kg2 {[%emt 0:00:07]} Rxf4 {[%emt 0:00:06]} 58. exf5 {[%emt 0:00:07]} Rxf5 {[%emt 0:00:11]} 59. Kg3 {[%emt 0:00:06]} Kb3 {[%emt 0:00:08]} 60. Kg4 {[%emt 0:01:11]} Rf1 {[%emt 0:00:09]} 0-1

[Event "Chinese Championship-B Men 2024"]
[Site "Liaocheng"]
[Date "2024.04.24"]
[Round "2.7"]
[White "Jiang, Qinyu"]
[Black "Zhou, Yuxu"]
[Result "1/2-1/2"]
[WhiteElo "2319"]
[BlackElo "1789"]
[PlyCount "61"]
[EventDate "2024.04.24"]
[EventType "swiss"]
[EventCountry "CHN"]
[TimeControl "5400+30"]

1. e4 {[%emt 0:04:11]} c6 {[%emt 0:00:01]} 2. d4 {[%emt 0:00:33]} d5 {[%emt 0:00:02]} 3. e5 {[%emt 0:00:01]} Bf5 {[%emt 0:00:07]} 4. h4 {[%emt 0:00:02]} h5 {[%emt 0:00:06]} 5. Bd3 {[%emt 0:00:02]} Bxd3 {[%emt 0:00:09]} 6. Qxd3 {[%emt 0:00:01]} Qa5+ {[%emt 0:00:24]} 7. Nd2 {[%emt 0:00:02]} e6 {[%emt 0:00:35]} 8. Ngf3 {[%emt 0:00:02]} Nh6 {[%emt 0:00:21]} 9. O-O {[%emt 0:00:04]} Nf5 {[%emt 0:00:11]} 10. a4 {[%emt 0:01:10]} Be7 {[%emt 0:03:11]} 11. g3 {[%emt 0:12:18]} O-O {[%emt 0:05:43]} 12. c4 {[%emt 0:00:36]} Rd8 {[%emt 0:04:29]} 13. b3 {[%emt 0:09:50]} c5 {[%emt 0:10:12]} 14. Ba3 {[%emt 0:09:15]} cxd4 {[%emt 0:06:21]} 15. Bxe7 {[%emt 0:04:09]} Nxe7 {[%emt 0:00:12]} 16. Qxd4 {[%emt 0:00:43]} Nbc6 {[%emt 0:16:46]} 17. Qf4 {[%emt 0:01:51]} Ng6 {[%emt 0:05:16]} 18. Qg5 {[%emt 0:00:52]} Ncxe5 {[%emt 0:03:47]} 19. Nxe5 {[%emt 0:03:55]} Nxe5 {[%emt 0:00:07]} 20. Qxe5 {[%emt 0:00:04]} Qxd2 {[%emt 0:00:09]} 21. Rad1 {[%emt 0:03:03]} Qc2 {[%emt 0:02:34]} 22. cxd5 {[%emt 0:00:02]} exd5 {[%emt 0:04:09]} 23. Rxd5 {[%emt 0:04:18]} Qxb3 {[%emt 0:02:22]} 24. Rb5 {[%emt 0:00:08]} Qxa4 {[%emt 0:03:07]} 25. Rxb7 {[%emt 0:00:02]} Rd1 {[%emt 0:03:30]} 26. Qxh5 {[%emt 0:03:46]} Rxf1+ 27. Kxf1 {[%emt 0:00:02]} Qa6+ {[%emt 0:04:24]} 28. Qb5 {[%emt 0:00:02]} Qxb5+ {[%emt 0:01:04]} 29. Rxb5 {[%emt 0:00:02]} a5 {[%emt 0:00:05]} 30. Ke2 {[%emt 0:00:05]} a4 {[%emt 0:01:07]} 31. Rb2 {[%emt 0:01:23]} 1/2-1/2

[Event "Chinese Championship-B Men 2024"]
[Site "Liaocheng"]
[Date "2024.04.24"]
[Round "2.8"]
[White "Qu, Haoming"]
[Black "Zhang, Di"]
[Result "0-1"]
[WhiteElo "1786"]
[BlackElo "2303"]
[PlyCount "100"]
[EventDate "2024.04.24"]
[EventType "swiss"]
[EventCountry "CHN"]
[TimeControl "5400+30"]

1. d4 {[%emt 0:00:05]} Nf6 {[%emt 0:00:19]} 2. c4 {[%emt 0:00:20]} e6 {[%emt 0:00:14]} 3. g3 {[%emt 0:00:21]} d5 {[%emt 0:00:44]} 4. Bg2 {[%emt 0:00:21]} Be7 {[%emt 0:00:18]} 5. Nf3 {[%emt 0:00:19]} O-O {[%emt 0:01:47]} 6. O-O {[%emt 0:00:36]} a5 {[%emt 0:00:07]} 7. Qc2 {[%emt 0:01:32]} Nc6 {[%emt 0:00:23]} 8. a3 {[%emt 0:05:47]} dxc4 {[%emt 0:00:20]} 9. Qxc4 {[%emt 0:01:15]} a4 {[%emt 0:00:09]} 10. Nc3 {[%emt 0:02:30]} Bd7 {[%emt 0:00:14]} 11. Qd3 {[%emt 0:02:32]} Nd5 {[%emt 0:05:57]} 12. e4 {[%emt 0:08:09]} Nxc3 {[%emt 0:00:16]} 13. Qxc3 {[%emt 0:00:54]} Na5 {[%emt 0:02:40]} 14. Bf4 {[%emt 0:01:42]} Bd6 {[%emt 0:02:35]} 15. Ne5 {[%emt 0:04:27]} Bb5 {[%emt 0:01:47]} 16. Rfe1 {[%emt 0:00:57]} Nb3 {[%emt 0:06:10]} 17. Rad1 {[%emt 0:00:56]} Rc8 {[%emt 0:01:06]} 18. Bh3 {[%emt 0:07:03]} c6 {[%emt 0:06:16]} 19. Be3 {[%emt 0:06:07]} Qe7 {[%emt 0:03:53]} 20. Nd3 {[%emt 0:54:37]} Bc7 {[%emt 0:04:45]} 21. Nb4 {[%emt 0:00:00]} Rfd8 {[%emt 0:08:47]} 22. Bf1 {[%emt 0:00:00]} Ba5 {[%emt 0:04:27]} 23. Bc4 {[%emt 0:00:00]} Bxc4 {[%emt 0:00:46]} 24. Qxc4 {[%emt 0:00:00]} b5 {[%emt 0:00:20]} 25. Qc3 {[%emt 0:00:00]} e5 {[%emt 0:00:18]} 26. dxe5 {[%emt 0:00:00]} c5 {[%emt 0:01:39]} 27. Nd5 {[%emt 0:00:00]} Rxd5 {[%emt 0:00:27]} 28. exd5 {[%emt 0:00:00]} Bxc3 {[%emt 0:00:08]} 29. bxc3 {[%emt 0:00:00]} Na5 {[%emt 0:10:00]} 30. d6 {[%emt 0:00:00]} Qd7 {[%emt 0:00:05]} 31. Rd5 {[%emt 0:00:00]} Nb7 {[%emt 0:00:11]} 32. f4 {[%emt 0:00:00]} h5 {[%emt 0:00:23]} 33. Red1 {[%emt 0:00:00]} h4 {[%emt 0:01:34]} 34. Kg2 {[%emt 0:00:00]} b4 {[%emt 0:00:43]} 35. axb4 {[%emt 0:00:00]} cxb4 {[%emt 0:00:05]} 36. cxb4 {[%emt 0:00:00]} a3 {[%emt 0:03:20]} 37. R1d2 {[%emt 0:00:00]} Rc3 {[%emt 0:01:34]} 38. Bc5 {[%emt 0:00:00]} hxg3 {[%emt 0:01:34]} 39. hxg3 {[%emt 0:00:00]} a2 {[%emt 0:00:48]} 40. Rxa2 {[%emt 0:00:00]} Qc6 {[%emt 0:00:13]} 41. Rad2 {[%emt 0:00:00]} Nxc5 {[%emt 0:00:11]} 42. bxc5 {[%emt 0:00:00]} Rxc5 {[%emt 0:00:04]} 43. Kh3 {[%emt 0:00:00]} Rxd5 {[%emt 0:00:05]} 44. Rxd5 {[%emt 0:00:00]} Qxd5 {[%emt 0:00:05]} 45. Kg4 {[%emt 0:00:00]} Kh7 {[%emt 0:00:06]} 46. Kg5 {[%emt 0:00:00]} Qf3 {[%emt 0:00:16]} 47. g4 {[%emt 0:00:00]} Qh3 {[%emt 0:00:48]} 48. Kf5 {[%emt 0:00:00]} Kh6 {[%emt 0:01:10]} 49. e6 {[%emt 0:00:00]} Qd3+ {[%emt 0:00:05]} 50. Ke5 {[%emt 0:00:00]} f6# {[%emt 0:00:03]} 0-1

[Event "Chinese Championship-B Men 2024"]
[Site "Liaocheng"]
[Date "2024.04.24"]
[Round "2.9"]
[White "Li, Youjia"]
[Black "Xi, Qi"]
[Result "0-1"]
[WhiteElo "1779"]
[BlackElo "2217"]
[PlyCount "72"]
[EventDate "2024.04.24"]
[EventType "swiss"]
[EventCountry "CHN"]
[TimeControl "5400+30"]

1. e4 {[%emt 0:00:09]} e6 {[%emt 0:00:35]} 2. d4 {[%emt 0:00:39]} d5 {[%emt 0:00:19]} 3. Nd2 {[%emt 0:00:02]} c5 {[%emt 0:00:35]} 4. exd5 {[%emt 0:00:26]} Qxd5 {[%emt 0:00:18]} 5. Ngf3 {[%emt 0:01:04]} cxd4 {[%emt 0:00:21]} 6. Bc4 {[%emt 0:00:19]} Qd7 {[%emt 0:00:35]} 7. O-O {[%emt 0:00:25]} Nc6 {[%emt 0:00:29]} 8. Nb3 {[%emt 0:00:16]} Nf6 {[%emt 0:01:09]} 9. Nbxd4 {[%emt 0:00:33]} Nxd4 {[%emt 0:00:11]} 10. Nxd4 {[%emt 0:00:16]} a6 {[%emt 0:00:07]} 11. Bb3 {[%emt 0:01:45]} Bc5 {[%emt 0:06:37]} 12. c3 {[%emt 0:03:01]} b5 {[%emt 0:02:22]} 13. Be3 {[%emt 0:20:55]} O-O {[%emt 0:15:38]} 14. Nf5 {[%emt 0:07:34]} Qc6 {[%emt 0:11:30]} 15. Bxc5 {[%emt 0:06:20]} Qxc5 {[%emt 0:00:09]} 16. Nd6 {[%emt 0:06:45]} Bd7 {[%emt 0:10:14]} 17. Ne4 {[%emt 0:01:17]} Nxe4 {[%emt 0:00:10]} 18. Qxd7 {[%emt 0:00:04]} Rad8 {[%emt 0:01:55]} 19. Qb7 {[%emt 0:00:27]} Nd2 {[%emt 0:00:19]} 20. Rfd1 {[%emt 0:07:17]} a5 {[%emt 0:03:19]} 21. g3 {[%emt 0:05:37]} a4 {[%emt 0:01:41]} 22. Bc2 {[%emt 0:01:17]} Rd5 {[%emt 0:00:31]} 23. a3 {[%emt 0:08:46]} Rfd8 {[%emt 0:00:48]} 24. Rac1 {[%emt 0:18:22]} g6 {[%emt 0:00:33]} 25. Ra1 {[%emt 0:05:55]} Kg7 {[%emt 0:01:13]} 26. Rac1 {[%emt 0:00:17]} e5 {[%emt 0:04:24]} 27. Ra1 {[%emt 0:03:13]} e4 {[%emt 0:01:45]} 28. Qa6 {[%emt 0:00:54]} R8d6 {[%emt 0:01:02]} 29. Qb7 {[%emt 0:00:33]} Rd7 {[%emt 0:01:39]} 30. Qa8 {[%emt 0:00:16]} e3 {[%emt 0:01:01]} 31. fxe3 {[%emt 0:00:37]} Qxe3+ {[%emt 0:00:02]} 32. Kh1 {[%emt 0:00:09]} Qf3+ {[%emt 0:00:35]} 33. Kg1 {[%emt 0:00:03]} Qe2 {[%emt 0:00:21]} 34. Rf1 {[%emt 0:01:25]} Nxf1 {[%emt 0:00:13]} 35. Rxf1 {[%emt 0:00:14]} Rd2 {[%emt 0:01:23]} 36. Qh1 {[%emt 0:00:47]} Qe3+ {[%emt 0:34:27]} 0-1

[Event "Chinese Championship-B Men 2024"]
[Site "Liaocheng"]
[Date "2024.04.24"]
[Round "2.10"]
[White "Chen, Hongsen"]
[Black "Liu, Heyang"]
[Result "1-0"]
[WhiteElo "2171"]
[BlackElo "1776"]
[PlyCount "123"]
[EventDate "2024.04.24"]
[EventType "swiss"]
[EventCountry "CHN"]
[TimeControl "5400+30"]

1. d4 {[%emt 0:00:04]} Nf6 {[%emt 0:01:45]} 2. c4 {[%emt 0:00:16]} e6 {[%emt 0:00:19]} 3. Nf3 {[%emt 0:00:07]} d5 {[%emt 0:00:30]} 4. Nc3 {[%emt 0:00:28]} c6 {[%emt 0:00:34]} 5. cxd5 {[%emt 0:01:11]} exd5 {[%emt 0:00:12]} 6. Bg5 {[%emt 0:00:06]} Be7 {[%emt 0:00:59]} 7. Qc2 {[%emt 0:00:09]} O-O {[%emt 0:00:48]} 8. e3 {[%emt 0:00:10]} Nbd7 {[%emt 0:00:52]} 9. h3 {[%emt 0:01:18]} Re8 {[%emt 0:00:35]} 10. Bd3 {[%emt 0:00:17]} Nf8 {[%emt 0:01:22]} 11. O-O {[%emt 0:00:25]} g6 {[%emt 0:01:04]} 12. Rab1 {[%emt 0:02:53]} a5 {[%emt 0:00:08]} 13. a3 {[%emt 0:00:18]} Ne6 {[%emt 0:00:26]} 14. Bh4 {[%emt 0:00:09]} Ng7 {[%emt 0:01:12]} 15. b4 {[%emt 0:01:50]} axb4 {[%emt 0:00:11]} 16. axb4 {[%emt 0:00:06]} Bf5 {[%emt 0:00:06]} 17. Ne5 {[%emt 0:02:37]} Bxd3 {[%emt 0:01:54]} 18. Nxd3 {[%emt 0:00:19]} Nf5 {[%emt 0:00:58]} 19. Bxf6 {[%emt 0:01:05]} Bxf6 {[%emt 0:00:12]} 20. b5 {[%emt 0:05:22]} Ra3 {[%emt 0:05:29]} 21. Ne2 {[%emt 0:04:28]} Qe7 {[%emt 0:35:28]} 22. bxc6 {[%emt 0:12:13]} bxc6 {[%emt 0:00:30]} 23. Kh1 {[%emt 0:02:08]} Qd7 {[%emt 0:20:05]} 24. Nef4 {[%emt 0:06:36]} Nd6 {[%emt 0:05:22]} 25. Nc5 {[%emt 0:01:53]} Qc8 {[%emt 0:01:21]} 26. Ra1 {[%emt 0:01:37]} Rxa1 {[%emt 0:01:23]} 27. Rxa1 {[%emt 0:00:07]} Kg7 {[%emt 0:01:37]} 28. Ra6 {[%emt 0:01:25]} Ne4 {[%emt 0:01:37]} 29. Rb6 {[%emt 0:05:50]} Bd8 {[%emt 0:08:29]} 30. Rb1 {[%emt 0:04:37]} Bc7 {[%emt 0:02:38]} 31. Nxe4 {[%emt 0:01:31]} Bxf4 {[%emt 0:01:11]} 32. Nc5 {[%emt 0:03:38]} Bd6 {[%emt 0:01:28]} 33. Nd3 {[%emt 0:02:43]} Qd7 {[%emt 0:00:20]} 34. Rb3 {[%emt 0:00:56]} Ra8 {[%emt 0:00:18]} 35. f4 {[%emt 0:00:59]} Re8 {[%emt 0:01:16]} 36. Nf2 {[%emt 0:03:06]} Ra8 {[%emt 0:01:51]} 37. g4 {[%emt 0:01:31]} Ra6 {[%emt 0:00:45]} 38. Kg2 {[%emt 0:00:13]} Qa7 {[%emt 0:00:23]} 39. Rc3 {[%emt 0:01:29]} Qa8 {[%emt 0:00:43]} 40. Rb3 {[%emt 0:07:02]} Ra2 {[%emt 0:00:31]} 41. Rb2 {[%emt 0:00:05]} Rxb2 {[%emt 0:01:07]} 42. Qxb2 {[%emt 0:00:06]} Qa3 {[%emt 0:00:27]} 43. Qxa3 {[%emt 0:02:14]} Bxa3 {[%emt 0:00:02]} 44. Nd3 {[%emt 0:00:09]} Bd6 {[%emt 0:00:14]} 45. Kf3 {[%emt 0:00:25]} Kf6 {[%emt 0:00:17]} 46. e4 dxe4+ {[%emt 0:00:10]} 47. Kxe4 {[%emt 0:06:39]} Ke6 {[%emt 0:01:55]} 48. f5+ {[%emt 0:00:37]} Kf6 {[%emt 0:00:30]} 49. Ne5 {[%emt 0:02:15]} Bxe5 {[%emt 0:01:56]} 50. dxe5+ {[%emt 0:00:05]} Ke7 {[%emt 0:01:28]} 51. h4 {[%emt 0:04:53]} h5 {[%emt 0:00:29]} 52. gxh5 {[%emt 0:00:08]} gxf5+ {[%emt 0:00:26]} 53. Kxf5 {[%emt 0:00:05]} c5 {[%emt 0:00:22]} 54. h6 {[%emt 0:00:05]} Kf8 {[%emt 0:00:03]} 55. Kf6 {[%emt 0:00:30]} Kg8 {[%emt 0:00:06]} 56. h7+ {[%emt 0:00:05]} Kxh7 {[%emt 0:00:14]} 57. Kxf7 {[%emt 0:00:03]} c4 {[%emt 0:00:07]} 58. e6 {[%emt 0:00:04]} c3 {[%emt 0:00:04]} 59. e7 {[%emt 0:00:03]} c2 {[%emt 0:00:04]} 60. e8=Q {[%emt 0:00:05]} c1=Q {[%emt 0:00:17]} 61. Qg8+ {[%emt 0:00:19]} Kh6 {[%emt 0:00:06]} 62. Qg6# {[%emt 0:00:04]} 1-0

[Event "Chinese Championship-B Men 2024"]
[Site "Liaocheng"]
[Date "2024.04.24"]
[Round "2.11"]
[White "Liu, Haoling"]
[Black "Gong, Changda"]
[Result "1/2-1/2"]
[WhiteElo "1772"]
[BlackElo "2170"]
[PlyCount "62"]
[EventDate "2024.04.24"]
[EventType "swiss"]
[EventCountry "CHN"]
[TimeControl "5400+30"]

1. d4 {[%emt 0:00:05]} d5 {[%emt 0:00:02]} 2. Nf3 {[%emt 0:00:09]} Nf6 {[%emt 0:00:03]} 3. Bf4 {[%emt 0:00:21]} c5 {[%emt 0:00:31]} 4. e3 {[%emt 0:00:07]} Nc6 {[%emt 0:00:08]} 5. Nbd2 {[%emt 0:00:14]} Qb6 {[%emt 0:01:37]} 6. dxc5 {[%emt 0:00:15]} Qxb2 {[%emt 0:00:12]} 7. Rb1 {[%emt 0:00:08]} Qc3 {[%emt 0:00:18]} 8. Bb5 {[%emt 0:00:16]} g6 {[%emt 0:01:05]} 9. O-O {[%emt 0:02:02]} Bg7 {[%emt 0:00:25]} 10. Nd4 {[%emt 0:00:53]} Bd7 {[%emt 0:06:29]} 11. N2b3 {[%emt 0:02:04]} Ne4 {[%emt 0:18:38]} 12. Bd3 {[%emt 0:12:17]} Nxd4 {[%emt 0:13:51]} 13. exd4 {[%emt 0:07:59]} O-O {[%emt 0:04:25]} 14. Re1 {[%emt 0:03:55]} Qb4 {[%emt 0:11:25]} 15. Bxe4 {[%emt 0:07:24]} dxe4 {[%emt 0:00:02]} 16. Rxe4 {[%emt 0:00:22]} e6 {[%emt 0:03:50]} 17. Bd6 {[%emt 0:06:50]} Rfe8 {[%emt 0:01:41]} 18. Nd2 {[%emt 0:02:57]} Qa5 {[%emt 0:02:53]} 19. Nc4 {[%emt 0:11:42]} Qxa2 {[%emt 0:02:37]} 20. Ne5 {[%emt 0:01:07]} Ba4 {[%emt 0:05:50]} 21. Re2 {[%emt 0:16:05]} Qd5 {[%emt 0:01:45]} 22. Qd2 {[%emt 0:02:31]} Bc6 {[%emt 0:02:03]} 23. f3 {[%emt 0:01:09]} b5 {[%emt 0:00:59]} 24. Qf4 {[%emt 0:01:30]} f6 {[%emt 0:06:02]} 25. Nxc6 {[%emt 0:00:15]} Qxc6 {[%emt 0:00:11]} 26. Qe4 {[%emt 0:01:58]} Qd7 {[%emt 0:01:45]} 27. Qd3 {[%emt 0:01:04]} a6 {[%emt 0:01:44]} 28. c4 {[%emt 0:00:37]} Bf8 {[%emt 0:00:51]} 29. Bxf8 {[%emt 0:18:44]} Kxf8 {[%emt 0:01:00]} 30. cxb5 {[%emt 0:00:00]} axb5 {[%emt 0:00:04]} 31. Rxb5 {[%emt 0:00:00]} Ra4 {[%emt 0:02:08]} 1/2-1/2